[Event "*** Titled Tuesday Blitz"]
[Site "Chess.com"]
[Date "2020.05.26"]
[Round "4"]
[White "Doraemon7"]
[Black "vanyakuba"]
[Result "1-0"]
[WhiteElo "2638"]
[BlackElo "2468"]
[TimeControl "180+1"]
[EndTime "10:38:07 PDT"]
[Termination "Doraemon7 won on time"]

1. Nf3 {[%clk 0:03:00.9]} 1... d5 {[%clk 0:02:58.9]} 2. d4 {[%clk 0:03:00.8]}
2... c5 {[%clk 0:02:59]} 3. c4 {[%clk 0:02:52.1]} 3... e6 {[%clk 0:02:58.6]} 4.
cxd5 {[%clk 0:02:52]} 4... exd5 {[%clk 0:02:58.4]} 5. g3 {[%clk 0:02:52.6]} 5...
Nc6 {[%clk 0:02:58.9]} 6. Bg2 {[%clk 0:02:53.5]} 6... Nf6 {[%clk 0:02:59.5]} 7.
O-O {[%clk 0:02:53.5]} 7... Be7 {[%clk 0:03:00.2]} 8. dxc5 {[%clk 0:02:53.8]}
8... Bxc5 {[%clk 0:03:00]} 9. Qc2 {[%clk 0:02:54.1]} 9... Bb6 {[%clk 0:02:52.7]}
10. Nc3 {[%clk 0:02:54.7]} 10... Be6 {[%clk 0:02:47.7]} 11. Na4 {[%clk
0:02:53.4]} 11... O-O {[%clk 0:02:14.1]} 12. Rd1 {[%clk 0:02:49]} 12... Ne4
{[%clk 0:02:04.8]} 13. Nxb6 {[%clk 0:02:48.6]} 13... Qxb6 {[%clk 0:02:05.7]} 14.
Be3 {[%clk 0:02:48.8]} 14... Qa6 {[%clk 0:02:01.5]} 15. Nd4 {[%clk 0:02:36.9]}
15... Nxd4 {[%clk 0:01:46]} 16. Bxd4 {[%clk 0:02:33.8]} 16... Rac8 {[%clk
0:01:46.1]} 17. Qd3 {[%clk 0:02:20.8]} 17... Qxd3 {[%clk 0:00:53.3]} 18. Rxd3
{[%clk 0:02:13.2]} 18... a6 {[%clk 0:00:48.6]} 19. f3 {[%clk 0:01:58.2]} 19...
Nc5 {[%clk 0:00:41.2]} 20. Rd2 {[%clk 0:01:54.5]} 20... b5 {[%clk 0:00:31.4]}
21. Rc1 {[%clk 0:01:51.2]} 21... Nb7 {[%clk 0:00:21.7]} 22. Rxc8 {[%clk
0:01:52.1]} 22... Rxc8 {[%clk 0:00:21.3]} 23. Kf2 {[%clk 0:01:50.8]} 23... Nd6
{[%clk 0:00:21.4]} 24. b3 {[%clk 0:01:50.6]} 24... f6 {[%clk 0:00:21.6]} 25. Bb2
{[%clk 0:01:45.8]} 25... Nf5 {[%clk 0:00:17.2]} 26. Bh3 {[%clk 0:01:43.3]} 26...
Kf7 {[%clk 0:00:17.5]} 27. Bg2 {[%clk 0:01:37.9]} 27... Ke7 {[%clk 0:00:14.8]}
28. Ba3+ {[%clk 0:01:36.6]} 28... Kf7 {[%clk 0:00:15.2]} 29. f4 {[%clk
0:01:33.4]} 29... Ne7 {[%clk 0:00:12.9]} 30. e4 {[%clk 0:01:24.5]} 30... dxe4
{[%clk 0:00:12.3]} 31. Bxe4 {[%clk 0:01:25.4]} 31... Bf5 {[%clk 0:00:07.4]} 32.
Bb7 {[%clk 0:01:23.2]} 32... Rc2 {[%clk 0:00:04.6]} 33. Rxc2 {[%clk 0:01:22.5]}
33... Bxc2 {[%clk 0:00:05.5]} 34. Bxa6 {[%clk 0:01:23]} 34... Bb1 {[%clk
0:00:05.6]} 35. Bxb5 {[%clk 0:01:23]} 35... Bxa2 {[%clk 0:00:06.2]} 36. Bc4+
{[%clk 0:01:23.3]} 36... Ke8 {[%clk 0:00:06.6]} 37. Ke3 {[%clk 0:01:22.6]} 37...
Nf5+ {[%clk 0:00:06.6]} 38. Ke4 {[%clk 0:01:21.9]} 38... Bb1+ {[%clk 0:00:06.3]}
39. Kd5 {[%clk 0:01:21.6]} 39... Ne3+ {[%clk 0:00:06.1]} 40. Kd4 {[%clk
0:01:21.2]} 40... Nxc4 {[%clk 0:00:06.2]} 41. Kxc4 {[%clk 0:01:19]} 41... Kd7
{[%clk 0:00:06.3]} 42. Kc5 {[%clk 0:01:19.4]} 42... Kc7 {[%clk 0:00:05.8]} 43.
b4 {[%clk 0:01:19.6]} 43... g5 {[%clk 0:00:02.8]} 44. Bb2 {[%clk 0:01:14.6]}
44... gxf4 {[%clk 0:00:02.5]} 45. gxf4 {[%clk 0:01:14.9]} 45... f5 {[%clk
0:00:03]} 46. Kd5 {[%clk 0:01:15.5]} 46... h5 {[%clk 0:00:02]} 47. Ke5 {[%clk
0:01:14.6]} 47... Bd3 {[%clk 0:00:02.2]} 48. Bd4 {[%clk 0:01:14.9]} 1-0

[Event "*** Titled Tuesday Blitz"]
[Site "Chess.com"]
[Date "2020.05.26"]
[Round "4"]
[White "JTCoach"]
[Black "Love_craft"]
[Result "1-0"]
[WhiteElo "2661"]
[BlackElo "2473"]
[TimeControl "180+1"]
[EndTime "10:38:08 PDT"]
[Termination "JTCoach won by resignation"]

1. e4 {[%clk 0:03:00.9]} 1... e5 {[%clk 0:02:52.5]} 2. Nf3 {[%clk 0:03:00.6]}
2... Nc6 {[%clk 0:02:52.7]} 3. Bb5 {[%clk 0:03:00.6]} 3... Nf6 {[%clk
0:02:52.9]} 4. d3 {[%clk 0:02:58.3]} 4... d6 {[%clk 0:02:52.1]} 5. O-O {[%clk
0:02:57.9]} 5... Bd7 {[%clk 0:02:50.5]} 6. c3 {[%clk 0:02:57]} 6... g6 {[%clk
0:02:49.9]} 7. Re1 {[%clk 0:02:57.1]} 7... Bg7 {[%clk 0:02:50.1]} 8. Nbd2 {[%clk
0:02:57.6]} 8... O-O {[%clk 0:02:50.3]} 9. Nf1 {[%clk 0:02:57.7]} 9... Nh5
{[%clk 0:02:50.9]} 10. d4 {[%clk 0:02:50.9]} 10... Nxd4 {[%clk 0:02:47.6]} 11.
Nxd4 {[%clk 0:02:50]} 11... exd4 {[%clk 0:02:47.7]} 12. Bxd7 {[%clk 0:02:50]}
12... dxc3 {[%clk 0:02:48.2]} 13. Bg4 {[%clk 0:02:46.1]} 13... cxb2 {[%clk
0:02:45.1]} 14. Bxb2 {[%clk 0:02:46.2]} 14... Bxb2 {[%clk 0:02:45.6]} 15. Rb1
{[%clk 0:02:46.2]} 15... Bg7 {[%clk 0:02:31.9]} 16. Bxh5 {[%clk 0:02:40.2]}
16... gxh5 {[%clk 0:02:32.8]} 17. Rxb7 {[%clk 0:02:39.4]} 17... h4 {[%clk
0:01:19.6]} 18. Ne3 {[%clk 0:02:24.4]} 18... Kh8 {[%clk 0:01:09]} 19. Nf5 {[%clk
0:02:06.5]} 19... Rg8 {[%clk 0:01:08.1]} 20. Qh5 {[%clk 0:01:48.3]} 20... Rb8
{[%clk 0:00:35.3]} 21. Rxa7 {[%clk 0:00:49.5]} 21... Qe8 {[%clk 0:00:17.5]} 22.
Qxh4 {[%clk 0:00:36.3]} 22... Rb2 {[%clk 0:00:16.8]} 23. g3 {[%clk 0:00:27.1]}
23... Bc3 {[%clk 0:00:15.2]} 24. Rxc7 {[%clk 0:00:20.3]} 24... Qd8 {[%clk
0:00:07.2]} 25. Qxd8 {[%clk 0:00:19.3]} 25... Rxd8 {[%clk 0:00:08.1]} 26. Rxc3
{[%clk 0:00:19.4]} 1-0

[Event "*** Titled Tuesday Blitz"]
[Site "Chess.com"]
[Date "2020.05.26"]
[Round "4"]
[White "Man-Chuk"]
[Black "nihalsarin"]
[Result "1-0"]
[WhiteElo "2762"]
[BlackElo "3026"]
[TimeControl "180+1"]
[EndTime "10:38:09 PDT"]
[Termination "Man-Chuk won by checkmate"]

1. c4 {[%clk 0:03:00.9]} 1... e5 {[%clk 0:02:57.5]} 2. Nc3 {[%clk 0:03:00.7]}
2... Nf6 {[%clk 0:02:57.4]} 3. Nf3 {[%clk 0:02:59.3]} 3... Nc6 {[%clk
0:02:57.2]} 4. e3 {[%clk 0:02:59.8]} 4... Bb4 {[%clk 0:02:56.2]} 5. Nd5 {[%clk
0:02:59.7]} 5... d6 {[%clk 0:02:47]} 6. Be2 {[%clk 0:02:45.8]} 6... O-O {[%clk
0:02:42.9]} 7. a3 {[%clk 0:02:39.6]} 7... Ba5 {[%clk 0:02:37.9]} 8. b4 {[%clk
0:02:36.9]} 8... Bb6 {[%clk 0:02:34.5]} 9. Nxb6 {[%clk 0:02:36.9]} 9... axb6
{[%clk 0:02:34.5]} 10. Bb2 {[%clk 0:02:37.8]} 10... Bg4 {[%clk 0:02:19]} 11. h3
{[%clk 0:02:18.3]} 11... Bh5 {[%clk 0:02:17.9]} 12. d3 {[%clk 0:02:06.9]} 12...
Re8 {[%clk 0:02:14.2]} 13. O-O {[%clk 0:01:58.8]} 13... e4 {[%clk 0:02:14.2]}
14. dxe4 {[%clk 0:01:46.8]} 14... Nxe4 {[%clk 0:02:15.1]} 15. Nd4 {[%clk
0:01:22.1]} 15... Bxe2 {[%clk 0:02:05.6]} 16. Nxe2 {[%clk 0:01:23]} 16... Qd7
{[%clk 0:00:56]} 17. Rc1 {[%clk 0:01:14.5]} 17... Rad8 {[%clk 0:00:43.3]} 18.
Qd5 {[%clk 0:01:06.6]} 18... Qe7 {[%clk 0:00:33.9]} 19. Nf4 {[%clk 0:00:53.5]}
19... Nf6 {[%clk 0:00:33.2]} 20. Qf5 {[%clk 0:00:44.2]} 20... Qe4 {[%clk
0:00:24.8]} 21. Qg5 {[%clk 0:00:36.2]} 21... Ne5 {[%clk 0:00:25.3]} 22. Rfd1
{[%clk 0:00:35.9]} 22... h6 {[%clk 0:00:23.7]} 23. Qg3 {[%clk 0:00:30.7]} 23...
Qf5 {[%clk 0:00:24.2]} 24. Nd5 {[%clk 0:00:26.8]} 24... Nxd5 {[%clk 0:00:13.4]}
25. cxd5 {[%clk 0:00:27.7]} 25... Re7 {[%clk 0:00:11.4]} 26. f3 {[%clk
0:00:27.5]} 26... Nd3 {[%clk 0:00:07.3]} 27. Qxg7# {[%clk 0:00:24]} 1-0

[Event "*** Titled Tuesday Blitz"]
[Site "Chess.com"]
[Date "2020.05.26"]
[Round "4"]
[White "RobertPrieb2007"]
[Black "harkerchess"]
[Result "1-0"]
[WhiteElo "2447"]
[BlackElo "2056"]
[TimeControl "180+1"]
[EndTime "10:38:11 PDT"]
[Termination "RobertPrieb2007 won by resignation"]

1. d4 {[%clk 0:03:00.9]} 1... d5 {[%clk 0:02:59.8]} 2. c4 {[%clk 0:03:00.6]}
2... c6 {[%clk 0:02:59.8]} 3. Nf3 {[%clk 0:03:00.1]} 3... Nf6 {[%clk 0:02:57.9]}
4. Nc3 {[%clk 0:02:59.8]} 4... dxc4 {[%clk 0:02:57.3]} 5. a4 {[%clk 0:02:58.6]}
5... Bf5 {[%clk 0:02:56.7]} 6. e3 {[%clk 0:02:59.1]} 6... e6 {[%clk 0:02:56.8]}
7. Bxc4 {[%clk 0:02:55.1]} 7... Bb4 {[%clk 0:02:57.1]} 8. O-O {[%clk 0:02:52.6]}
8... O-O {[%clk 0:02:57.6]} 9. Qe2 {[%clk 0:02:52.6]} 9... Nbd7 {[%clk
0:02:57.8]} 10. e4 {[%clk 0:02:49.3]} 10... Bg6 {[%clk 0:02:58.3]} 11. Bd3
{[%clk 0:02:46.7]} 11... Re8 {[%clk 0:02:53]} 12. e5 {[%clk 0:02:42.4]} 12...
Bxd3 {[%clk 0:02:43.3]} 13. Qxd3 {[%clk 0:02:43.3]} 13... Nd5 {[%clk 0:02:43.7]}
14. Bd2 {[%clk 0:02:38.5]} 14... h6 {[%clk 0:02:41.6]} 15. Nxd5 {[%clk
0:02:34.6]} 15... Bxd2 {[%clk 0:02:42.1]} 16. Nc3 {[%clk 0:02:33.6]} 16... Bg5
{[%clk 0:02:37.2]} 17. Nxg5 {[%clk 0:02:30]} 17... Qxg5 {[%clk 0:02:38.1]} 18.
Ne4 {[%clk 0:02:26.9]} 18... Qg6 {[%clk 0:02:37.4]} 19. a5 {[%clk 0:02:22.5]}
19... Rad8 {[%clk 0:02:35.8]} 20. Qf3 {[%clk 0:02:18.1]} 20... Nb8 {[%clk
0:02:31.8]} 21. Nd6 {[%clk 0:02:12.5]} 21... Re7 {[%clk 0:02:31.5]} 22. Rac1
{[%clk 0:02:09]} 22... f6 {[%clk 0:02:27.6]} 23. Qe2 {[%clk 0:02:06.3]} 23...
Red7 {[%clk 0:02:11.5]} 24. Qc4 {[%clk 0:02:01.7]} 24... Re7 {[%clk 0:02:06.4]}
25. Rc3 {[%clk 0:01:48.5]} 25... fxe5 {[%clk 0:01:54.4]} 26. dxe5 {[%clk
0:01:45.8]} 26... Nd7 {[%clk 0:01:54.2]} 27. f4 {[%clk 0:01:42.2]} 27... Nf8
{[%clk 0:01:46.8]} 28. f5 {[%clk 0:01:38.7]} 28... Qh7 {[%clk 0:01:46.3]} 29. a6
{[%clk 0:01:33.2]} 29... b6 {[%clk 0:01:30.3]} 30. Qxc6 {[%clk 0:01:27.8]} 30...
exf5 {[%clk 0:01:26.6]} 31. Qc4+ {[%clk 0:01:28.3]} 31... Ne6 {[%clk 0:01:22.2]}
32. Nxf5 {[%clk 0:01:27.5]} 32... Ree8 {[%clk 0:01:17.8]} 33. Nd6 {[%clk
0:01:25.3]} 33... Re7 {[%clk 0:01:17.2]} 34. Nc8 {[%clk 0:01:24.3]} 34... Ree8
{[%clk 0:01:08.8]} 35. Nxa7 {[%clk 0:01:23.4]} 35... Kh8 {[%clk 0:01:02.4]} 36.
Nc6 {[%clk 0:01:20.7]} 36... Ra8 {[%clk 0:01:00.1]} 37. a7 {[%clk 0:01:18]}
37... Rac8 {[%clk 0:00:52]} 38. b4 {[%clk 0:01:13.8]} 38... Nc7 {[%clk
0:00:38.8]} 39. Nb8 {[%clk 0:01:09]} 39... b5 {[%clk 0:00:20.6]} 40. Qc6 {[%clk
0:01:03.9]} 40... Red8 {[%clk 0:00:10.2]} 41. Qb7 {[%clk 0:00:59.9]} 41... Qg6
{[%clk 0:00:07.6]} 42. Rxc7 {[%clk 0:00:56.7]} 42... Qb6+ {[%clk 0:00:05.1]} 43.
Qxb6 {[%clk 0:00:55.5]} 1-0

[Event "*** Titled Tuesday Blitz"]
[Site "Chess.com"]
[Date "2020.05.26"]
[Round "4"]
[White "CraiggoryC"]
[Black "silverback96"]
[Result "0-1"]
[WhiteElo "2116"]
[BlackElo "2311"]
[TimeControl "180+1"]
[EndTime "10:38:13 PDT"]
[Termination "silverback96 won on time"]

1. e4 {[%clk 0:03:00.9]} 1... e6 {[%clk 0:02:58.4]} 2. d4 {[%clk 0:03:00.5]}
2... d5 {[%clk 0:02:58.6]} 3. e5 {[%clk 0:03:01]} 3... c5 {[%clk 0:02:57.7]} 4.
c3 {[%clk 0:03:01]} 4... Qb6 {[%clk 0:02:58.1]} 5. Nf3 {[%clk 0:03:01.1]} 5...
Nc6 {[%clk 0:02:57.1]} 6. a3 {[%clk 0:02:59.9]} 6... c4 {[%clk 0:02:57.5]} 7.
Nbd2 {[%clk 0:02:58.4]} 7... Na5 {[%clk 0:02:56.6]} 8. g3 {[%clk 0:02:56.1]}
8... Bd7 {[%clk 0:02:56.9]} 9. Bg2 {[%clk 0:02:52.6]} 9... h6 {[%clk 0:02:57.5]}
10. h4 {[%clk 0:02:49.1]} 10... Ne7 {[%clk 0:02:49.6]} 11. h5 {[%clk 0:02:37.8]}
11... O-O-O {[%clk 0:02:49.5]} 12. O-O {[%clk 0:02:35.9]} 12... g5 {[%clk
0:02:47]} 13. hxg6 {[%clk 0:02:30.4]} 13... Nxg6 {[%clk 0:02:44.6]} 14. Rb1
{[%clk 0:02:25.4]} 14... Qc7 {[%clk 0:02:43.3]} 15. Qe1 {[%clk 0:02:08.2]} 15...
Ba4 {[%clk 0:02:35.9]} 16. Bh3 {[%clk 0:01:49.8]} 16... Be7 {[%clk 0:02:33.7]}
17. b4 {[%clk 0:01:33.9]} 17... cxb3 {[%clk 0:02:32.7]} 18. c4 {[%clk
0:01:32.2]} 18... Nxc4 {[%clk 0:02:32]} 19. Nxb3 {[%clk 0:01:23.1]} 19... Rdg8
{[%clk 0:02:31.7]} 20. Bg2 {[%clk 0:00:31.8]} 20... h5 {[%clk 0:02:11.4]} 21.
Nbd2 {[%clk 0:00:20.1]} 21... h4 {[%clk 0:02:07.2]} 22. Nxc4 {[%clk 0:00:19.3]}
22... dxc4 {[%clk 0:02:08.1]} 23. Nd2 {[%clk 0:00:14.7]} 23... Bc6 {[%clk
0:02:06.9]} 24. Ne4 {[%clk 0:00:13.3]} 24... hxg3 {[%clk 0:01:57.1]} 25. fxg3
{[%clk 0:00:10.5]} 25... b6 {[%clk 0:01:57]} 26. Rxf7 {[%clk 0:00:09.7]} 26...
Nxe5 {[%clk 0:01:16.2]} 27. dxe5 {[%clk 0:00:08.1]} 27... Bc5+ {[%clk
0:01:05.5]} 28. Nxc5 {[%clk 0:00:08]} 28... Qxf7 {[%clk 0:01:06]} 29. Bxc6
{[%clk 0:00:06.6]} 29... Qh7 {[%clk 0:00:58.1]} 30. Bd7+ {[%clk 0:00:04.9]}
30... Kc7 {[%clk 0:00:56.5]} 31. Nxe6+ {[%clk 0:00:04.4]} 31... Kxd7 {[%clk
0:00:55.7]} 32. Qd2+ {[%clk 0:00:03.9]} 32... Kxe6 {[%clk 0:00:51.4]} 33. Qd6+
{[%clk 0:00:03.9]} 33... Kf5 {[%clk 0:00:51.9]} 34. Qf6+ {[%clk 0:00:02.2]}
34... Ke4 {[%clk 0:00:52.4]} 0-1

[Event "*** Titled Tuesday Blitz"]
[Site "Chess.com"]
[Date "2020.05.26"]
[Round "4"]
[White "Zq1"]
[Black "The_Machine04"]
[Result "1-0"]
[WhiteElo "2509"]
[BlackElo "2288"]
[TimeControl "180+1"]
[EndTime "10:38:14 PDT"]
[Termination "Zq1 won on time"]

1. d4 {[%clk 0:03:00.9]} 1... d6 {[%clk 0:02:48.6]} 2. Nf3 {[%clk 0:03:00]} 2...
Nf6 {[%clk 0:02:40]} 3. c4 {[%clk 0:02:59.7]} 3... g6 {[%clk 0:02:33.3]} 4. Nc3
{[%clk 0:02:59.5]} 4... Bf5 {[%clk 0:02:32.4]} 5. g3 {[%clk 0:02:56.6]} 5... Ne4
{[%clk 0:02:31.1]} 6. Bg2 {[%clk 0:02:53.6]} 6... Nxc3 {[%clk 0:02:29.5]} 7.
bxc3 {[%clk 0:02:53.1]} 7... Be4 {[%clk 0:02:29.8]} 8. O-O {[%clk 0:02:51.4]}
8... Bg7 {[%clk 0:02:29.4]} 9. Bh3 {[%clk 0:02:49.1]} 9... O-O {[%clk
0:02:17.2]} 10. Nd2 {[%clk 0:02:46.7]} 10... Bc6 {[%clk 0:02:17.1]} 11. Rb1
{[%clk 0:02:44.2]} 11... b6 {[%clk 0:02:16.1]} 12. e4 {[%clk 0:02:40.3]} 12...
Nd7 {[%clk 0:01:42]} 13. Re1 {[%clk 0:02:35.4]} 13... e5 {[%clk 0:01:37.7]} 14.
Nb3 {[%clk 0:02:26.6]} 14... a5 {[%clk 0:01:26.7]} 15. Bg2 {[%clk 0:02:18]}
15... a4 {[%clk 0:01:17.9]} 16. Na1 {[%clk 0:02:16.9]} 16... Re8 {[%clk
0:01:10.9]} 17. Nc2 {[%clk 0:02:13.9]} 17... Bb7 {[%clk 0:01:06.1]} 18. f3
{[%clk 0:02:04.1]} 18... Ba6 {[%clk 0:01:01.3]} 19. Ne3 {[%clk 0:01:53.5]} 19...
c6 {[%clk 0:00:46.3]} 20. Ba3 {[%clk 0:01:50.1]} 20... Qc7 {[%clk 0:00:40.8]}
21. dxe5 {[%clk 0:01:31.3]} 21... dxe5 {[%clk 0:00:38.6]} 22. Bd6 {[%clk
0:01:28.9]} 22... Qd8 {[%clk 0:00:32.1]} 23. Bh3 {[%clk 0:01:27.8]} 23... Nc5
{[%clk 0:00:27.9]} 24. Bxc5 {[%clk 0:01:21.3]} 24... bxc5 {[%clk 0:00:28.8]} 25.
Qxa4 {[%clk 0:01:20.6]} 25... Qd2 {[%clk 0:00:20]} 26. Qxc6 {[%clk 0:01:16.3]}
26... Qxc3 {[%clk 0:00:09.1]} 27. Rbc1 {[%clk 0:01:02.5]} 27... Qd2 {[%clk
0:00:07.6]} 28. Rcd1 {[%clk 0:01:00.5]} 28... Qxa2 {[%clk 0:00:06.8]} 29. Nd5
{[%clk 0:00:36]} 29... Bxc4 {[%clk 0:00:05.1]} 30. Nc7 {[%clk 0:00:32.7]} 30...
Ra7 {[%clk 0:00:01.2]} 31. Qxe8+ {[%clk 0:00:30.8]} 1-0

[Event "*** Titled Tuesday Blitz"]
[Site "Chess.com"]
[Date "2020.05.26"]
[Round "4"]
[White "Lovinski"]
[Black "kinga2008"]
[Result "1-0"]
[WhiteElo "2408"]
[BlackElo "2210"]
[TimeControl "180+1"]
[EndTime "10:38:14 PDT"]
[Termination "Lovinski won by resignation"]

1. Nf3 {[%clk 0:03:00.9]} 1... b6 {[%clk 0:02:59.1]} 2. g3 {[%clk 0:03:00.8]}
2... Bb7 {[%clk 0:02:59.8]} 3. Bg2 {[%clk 0:03:01.3]} 3... g6 {[%clk 0:03:00.4]}
4. c4 {[%clk 0:03:01.7]} 4... Bg7 {[%clk 0:03:01]} 5. O-O {[%clk 0:03:01.8]}
5... Nf6 {[%clk 0:03:01.2]} 6. Nc3 {[%clk 0:03:02.2]} 6... d6 {[%clk 0:02:59.2]}
7. d4 {[%clk 0:03:01.3]} 7... O-O {[%clk 0:02:55.7]} 8. d5 {[%clk 0:03:01.4]}
8... Nbd7 {[%clk 0:02:45.1]} 9. Nd4 {[%clk 0:02:59]} 9... Rc8 {[%clk 0:02:41.5]}
10. b3 {[%clk 0:02:51.9]} 10... Ne5 {[%clk 0:02:30]} 11. f4 {[%clk 0:02:46.6]}
11... Neg4 {[%clk 0:02:26.7]} 12. h3 {[%clk 0:02:46.1]} 12... Nh6 {[%clk
0:02:23.8]} 13. g4 {[%clk 0:02:37.9]} 13... Nfxg4 {[%clk 0:02:03.6]} 14. hxg4
{[%clk 0:02:38.8]} 14... Nxg4 {[%clk 0:02:04]} 15. e4 {[%clk 0:02:25.1]} 15...
Bxd4+ {[%clk 0:01:54.6]} 16. Qxd4 {[%clk 0:02:26]} 16... e5 {[%clk 0:01:50.5]}
17. Qd3 {[%clk 0:02:05.1]} 17... f5 {[%clk 0:01:41.3]} 18. Qg3 {[%clk
0:01:49.4]} 18... h5 {[%clk 0:01:33.3]} 19. exf5 {[%clk 0:01:40.4]} 19... Rxf5
{[%clk 0:01:31]} 20. Be4 {[%clk 0:01:36.5]} 20... Rf6 {[%clk 0:01:21.2]} 21. f5
{[%clk 0:01:33.3]} 21... gxf5 {[%clk 0:01:05.1]} 22. Bxf5 {[%clk 0:01:33.2]}
22... Qf8 {[%clk 0:00:55.4]} 23. Be6+ {[%clk 0:01:25.6]} 23... Kg7 {[%clk
0:00:50.3]} 24. Bg5 {[%clk 0:01:25.8]} 24... Rxf1+ {[%clk 0:00:40.9]} 25. Rxf1
{[%clk 0:01:25.8]} 25... Qe8 {[%clk 0:00:38.5]} 26. Bxg4 {[%clk 0:01:09.9]}
26... hxg4 {[%clk 0:00:34]} 27. Qxg4 {[%clk 0:01:10.8]} 27... Qg6 {[%clk
0:00:26.7]} 28. Rf6 {[%clk 0:01:01.4]} 28... Qh7 {[%clk 0:00:07]} 29. Qd7+
{[%clk 0:00:57.3]} 29... Kh8 {[%clk 0:00:06.6]} 30. Rh6 {[%clk 0:00:55.9]} 30...
Qxh6 {[%clk 0:00:05.2]} 31. Bxh6 {[%clk 0:00:52.6]} 31... Rg8+ {[%clk 0:00:04]}
32. Kf2 {[%clk 0:00:52.3]} 32... Rg6 {[%clk 0:00:04.4]} 33. Be3 {[%clk
0:00:42.3]} 33... Rf6+ {[%clk 0:00:04.4]} 34. Ke2 {[%clk 0:00:39.9]} 1-0

[Event "*** Titled Tuesday Blitz"]
[Site "Chess.com"]
[Date "2020.05.26"]
[Round "4"]
[White "kleinebeer98"]
[Black "FairChess_on_YouTube"]
[Result "0-1"]
[WhiteElo "2668"]
[BlackElo "3021"]
[TimeControl "180+1"]
[EndTime "10:38:15 PDT"]
[Termination "FairChess_on_YouTube won by checkmate"]

1. e4 {[%clk 0:03:00.9]} 1... c5 {[%clk 0:02:58.1]} 2. Nf3 {[%clk 0:03:01]} 2...
e6 {[%clk 0:02:58.4]} 3. d4 {[%clk 0:03:01.4]} 3... cxd4 {[%clk 0:02:59.3]} 4.
Nxd4 {[%clk 0:03:02.3]} 4... a6 {[%clk 0:02:59]} 5. Qd3 {[%clk 0:03:02.5]} 5...
Nf6 {[%clk 0:02:51.3]} 6. Be2 {[%clk 0:03:02.4]} 6... d6 {[%clk 0:02:42.3]} 7.
c4 {[%clk 0:03:01.4]} 7... Nbd7 {[%clk 0:02:37]} 8. Nc3 {[%clk 0:02:59.8]} 8...
b6 {[%clk 0:02:37.1]} 9. Be3 {[%clk 0:02:38.4]} 9... Bb7 {[%clk 0:02:33.8]} 10.
Qc2 {[%clk 0:02:34.2]} 10... Be7 {[%clk 0:02:29.4]} 11. O-O {[%clk 0:02:33.2]}
11... O-O {[%clk 0:02:29.9]} 12. Rfd1 {[%clk 0:02:31.3]} 12... Qc7 {[%clk
0:02:29.7]} 13. Rac1 {[%clk 0:02:30.9]} 13... Rac8 {[%clk 0:02:28.9]} 14. b3
{[%clk 0:02:26.9]} 14... Qb8 {[%clk 0:02:28.5]} 15. Qb1 {[%clk 0:02:10.5]} 15...
Rfd8 {[%clk 0:02:26.8]} 16. Bd3 {[%clk 0:02:09.5]} 16... Qa8 {[%clk 0:02:21.8]}
17. f3 {[%clk 0:02:04.7]} 17... h5 {[%clk 0:02:14.6]} 18. Bf1 {[%clk 0:01:51.1]}
18... h4 {[%clk 0:02:13.2]} 19. Bg5 {[%clk 0:01:45.6]} 19... h3 {[%clk
0:02:11.8]} 20. g3 {[%clk 0:01:43.3]} 20... d5 {[%clk 0:02:05.7]} 21. exd5
{[%clk 0:01:33.6]} 21... Nxd5 {[%clk 0:02:01.3]} 22. Bxe7 {[%clk 0:01:24.6]}
22... Nxe7 {[%clk 0:02:00.7]} 23. Bxh3 {[%clk 0:01:23.4]} 23... Ne5 {[%clk
0:01:59.7]} 24. Bg2 {[%clk 0:01:18.3]} 24... Nxf3+ {[%clk 0:01:42.3]} 25. Nxf3
{[%clk 0:01:12.3]} 25... Bxf3 {[%clk 0:01:43.2]} 26. Bxf3 {[%clk 0:01:00.7]}
26... Qxf3 {[%clk 0:01:42.5]} 27. Rxd8+ {[%clk 0:01:01.6]} 27... Rxd8 {[%clk
0:01:42.3]} 28. Qe4 {[%clk 0:01:02.5]} 28... Qf6 {[%clk 0:01:37.4]} 29. Qe3
{[%clk 0:00:53.3]} 29... Nf5 {[%clk 0:01:26.2]} 30. Qxb6 {[%clk 0:00:49.2]}
30... Rd3 {[%clk 0:00:57.8]} 31. Ne4 {[%clk 0:00:46.1]} 31... Qb2 {[%clk
0:00:57.3]} 32. Rf1 {[%clk 0:00:30.9]} 32... Ne3 {[%clk 0:00:45]} 33. Qb8+
{[%clk 0:00:20.9]} 33... Kh7 {[%clk 0:00:44.7]} 34. Nf2 {[%clk 0:00:04.8]} 34...
Qe2 {[%clk 0:00:42.9]} 35. Rb1 {[%clk 0:00:01.4]} 35... Qf3 {[%clk 0:00:39.6]}
36. Qf4 {[%clk 0:00:01.4]} 36... Qg2# {[%clk 0:00:39.1]} 0-1

[Event "*** Titled Tuesday Blitz"]
[Site "Chess.com"]
[Date "2020.05.26"]
[Round "4"]
[White "DonPreuss"]
[Black "MasterKroket"]
[Result "0-1"]
[WhiteElo "2240"]
[BlackElo "2420"]
[TimeControl "180+1"]
[EndTime "10:38:15 PDT"]
[Termination "MasterKroket won by resignation"]

1. d4 {[%clk 0:03:00.9]} 1... Nf6 {[%clk 0:02:59.9]} 2. Nc3 {[%clk 0:03:00.6]}
2... d5 {[%clk 0:02:59.5]} 3. e4 {[%clk 0:02:59.4]} 3... Nxe4 {[%clk 0:02:54.2]}
4. Nxe4 {[%clk 0:02:59]} 4... dxe4 {[%clk 0:02:55.1]} 5. Bc4 {[%clk 0:02:59.2]}
5... Nc6 {[%clk 0:02:41.8]} 6. c3 {[%clk 0:02:59.2]} 6... e5 {[%clk 0:02:32.2]}
7. d5 {[%clk 0:02:54.2]} 7... Na5 {[%clk 0:02:22]} 8. Qa4+ {[%clk 0:02:15.4]}
8... c6 {[%clk 0:02:21.1]} 9. dxc6 {[%clk 0:02:15.3]} 9... Nxc6 {[%clk
0:02:20.7]} 10. Ne2 {[%clk 0:02:11.2]} 10... Be7 {[%clk 0:02:13.8]} 11. O-O
{[%clk 0:02:08.7]} 11... O-O {[%clk 0:02:11.4]} 12. Ng3 {[%clk 0:02:08.5]} 12...
Kh8 {[%clk 0:01:51.3]} 13. Nxe4 {[%clk 0:02:07.2]} 13... f5 {[%clk 0:01:51.6]}
14. Ng3 {[%clk 0:01:56.9]} 14... e4 {[%clk 0:01:44]} 15. Bf4 {[%clk 0:01:34.5]}
15... Qb6 {[%clk 0:01:37.4]} 16. Qc2 {[%clk 0:01:25.8]} 16... Na5 {[%clk
0:01:31.3]} 17. Bd5 {[%clk 0:01:19.6]} 17... Bd7 {[%clk 0:01:13.3]} 18. Rad1
{[%clk 0:01:17.9]} 18... Rad8 {[%clk 0:01:08.9]} 19. Be3 {[%clk 0:01:01.6]}
19... Qc7 {[%clk 0:01:07.8]} 20. Bd4 {[%clk 0:01:01]} 20... Bb5 {[%clk 0:01:04]}
21. Be6 {[%clk 0:00:47.9]} 21... Bxf1 {[%clk 0:01:02.7]} 22. Rxf1 {[%clk
0:00:47.9]} 22... Rxd4 {[%clk 0:00:59.1]} 23. Nxf5 {[%clk 0:00:39.5]} 23... Rd3
{[%clk 0:00:56.1]} 24. Re1 {[%clk 0:00:28.1]} 24... Qd8 {[%clk 0:00:19]} 25. Qe2
{[%clk 0:00:20.4]} 25... Bc5 {[%clk 0:00:15.5]} 26. Qh5 {[%clk 0:00:17.2]} 26...
Qf6 {[%clk 0:00:12.6]} 27. Bg8 {[%clk 0:00:11.6]} 27... Kxg8 {[%clk 0:00:09.2]}
0-1